bitfinex-derivatives/quotes_BTCF0:USTF0_20250424
["timestamp","ask_amount","ask_price","bid_price","bid_amount"]
[1745500907100,0.172836,92799.0,92798.0,0.26332716]
[1745500908908,0.172836,92799.0,92798.0,0.26432716]
[1745500911201,0.344836,92799.0,92798.0,0.26432716]
[1745500912011,0.344836,92799.0,92798.0,0.26332716]
[1745500913013,0.344836,92799.0,92798.0,0.26333736]
[1745500913202,0.344836,92799.0,92798.0,0.26133736]
[1745500915114,0.344836,92799.0,92798.0,0.15360366]
[1745500915414,0.344836,92799.0,92798.0,0.12340526]
[1745500916306,0.344836,92799.0,92798.0,0.1077372]
[1745500918211,0.344836,92799.0,92798.0,0.12340252]
[1745500918416,0.344836,92799.0,92798.0,0.01566532]
[1745500918610,0.705636,92799.0,92798.0,0.01566532]
[1745500919417,0.705636,92799.0,92798.0,0.12340252]
[1745500921203,0.705636,92799.0,92798.0,0.12349261]
[1745500924019,0.705636,92799.0,92798.0,0.12363254]
[1745500924324,0.705636,92799.0,92798.0,0.1381372]
[1745500924623,0.705636,92799.0,92798.0,0.15405387]
[1745500925026,0.705636,92799.0,92798.0,0.12365387]
[1745500927226,0.705636,92799.0,92798.0,0.15615387]
[1745500928933,0.705636,92799.0,92798.0,0.15606616]
[1745500929629,0.705636,92799.0,92798.0,0.1402372]
[1745500930426,0.344836,92799.0,92798.0,0.1402372]
[1745500930627,0.279736,92799.0,92798.0,0.1717372]
[1745500930827,0.172,92799.0,92798.0,0.5325372]
[1745500931333,0.1077268,92807.0,92806.0,0.1077267]
[1745500931722,0.1409268,92807.0,92806.0,0.1077267]
[1745500932137,0.3429268,92807.0,92806.0,0.1077267]
[1745500932933,0.3449268,92807.0,92806.0,0.1077267]
[1745500933437,0.3469268,92807.0,92806.0,0.1077267]
[1745500934831,0.3449268,92807.0,92806.0,0.1077267]
[1745500935035,0.3469268,92807.0,92806.0,0.1077267]
[1745500935738,0.7077268,92807.0,92806.0,0.12337726]
[1745500936435,0.7077268,92807.0,92791.0,0.1616151]
[1745500936436,0.1616191,92792.0,92791.0,0.1616151]
[1745500936737,0.0538726,92792.0,92791.0,0.1616151]
[1745500937142,0.2258726,92792.0,92791.0,0.1616151]
[1745500937827,0.2258726,92792.0,92791.0,0.1636151]
[1745500938231,0.2258726,92792.0,92791.0,0.1656151]
[1745500938936,0.172,92792.0,92791.0,0.1656151]
[1745500939140,0.1077367,92799.0,92798.0,0.1077372]
[1745500939331,0.2154801,92799.0,92798.0,0.1077372]
[1745500941239,0.3874801,92799.0,92798.0,0.1077372]
[1745500941939,0.4185801,92799.0,92798.0,0.1077372]
[1745500943944,0.4185801,92799.0,92798.0,0.1388372]
[1745500947935,0.172,92799.0,92798.0,0.1388372]
[1745500948134,0.279736,92799.0,92798.0,0.1388372]
[1745500948949,0.172,92799.0,92798.0,0.1388372]
[1745500949141,0.053867,92801.0,92800.0,0.1077349]
[1745500949440,0.161603,92801.0,92800.0,0.1077349]
[1745500949848,0.0538658,92803.0,92802.0,0.1077325]
[1745500950330,0.2258658,92803.0,92802.0,0.1077325]
[1745500951938,0.2268658,92803.0,92802.0,0.1077325]
[1745500952247,0.2278658,92803.0,92802.0,0.1077325]
[1745500952448,0.2604658,92803.0,92802.0,0.1077325]
[1745500952636,0.2931658,92803.0,92802.0,0.1077325]
[1745500961553,0.174,92803.0,92802.0,0.1077325]
[1745500961743,0.174,92803.0,92802.0,0.1388325]
[1745500962251,0.031,92813.0,92812.0,0.1077209]
[1745500962548,0.08230532,92814.0,92813.0,0.1077198]
[1745500964254,0.08330532,92814.0,92813.0,0.1077198]
[1745500964948,0.08530532,92814.0,92813.0,0.1077198]
[1745500965148,0.08430532,92814.0,92813.0,0.1087198]
[1745500965567,0.08430532,92814.0,92813.0,0.1077198]
[1745500965761,0.08430532,92814.0,92813.0,0.1087198]
[1745500966053,0.002,92814.0,92813.0,0.1087198]
[1745500966458,0.1077186,92814.0,92813.0,0.1087198]
[1745500966656,0.1706175,92815.0,92814.0,0.1077186]
[1745500966962,0.1706175,92815.0,92814.0,0.1410186]
[1745500967757,0.1706175,92815.0,92814.0,0.1440186]
[1745500968156,0.0629,92815.0,92814.0,0.1440186]
[1745500969762,0.1706175,92815.0,92814.0,0.1440186]
[1745500972165,0.3426175,92815.0,92814.0,0.1440186]
[1745500972870,0.2349,92815.0,92814.0,0.1440186]
[1745500973454,0.3426175,92815.0,92814.0,0.1440186]
[1745500974054,0.2349,92815.0,92814.0,0.1440186]
[1745500974254,0.3426175,92815.0,92814.0,0.1440186]
[1745500974463,0.2349,92815.0,92814.0,0.1440186]
[1745500976566,0.172,92815.0,92814.0,0.1440186]
[1745500977165,0.0301,92819.0,92818.0,0.107714]
[1745500977865,0.0301,92819.0,92818.0,0.139214]
[1745500978061,0.2021,92819.0,92818.0,0.139214]
[1745500981271,0.172,92819.0,92818.0,0.171914]
[1745500981860,0.172,92819.0,92818.0,0.204714]
[1745500982367,0.0645,92827.0,92826.0,0.1077047]
[1745500982960,0.0645,92827.0,92826.0,0.2047047]
[1745500983157,0.0645,92827.0,92826.0,0.21524812]
[1745500983462,0.0317,92827.0,92826.0,0.21524812]
[1745500983977,0.08230532,92832.0,92831.0,0.1076989]
[1745500984860,0.08230532,92832.0,92831.0,0.1392989]
[1745500985056,0.25410302,92832.0,92831.0,0.1076989]
[1745500985268,0.1077035,92829.0,92828.0,0.1077019]
[1745500985663,0.1714035,92829.0,92828.0,0.1077019]
[1745500986058,0.3434035,92829.0,92828.0,0.1077019]
[1745500986868,0.3454035,92829.0,92828.0,0.1077019]
[1745500987068,0.3474035,92829.0,92828.0,0.1077019]
[1745500991871,0.3474012,92829.0,92828.0,0.1077019]
[1745500995685,0.1077047,92826.0,92825.0,0.3608]
[1745500995871,0.1077151,92817.0,92816.0,0.3608]
[1745500996077,0.1077175,92816.0,92815.0,0.1077165]
[1745500996280,0.2014175,92816.0,92815.0,0.1077165]
[1745500997180,0.3734175,92816.0,92815.0,0.1077165]
[1745500998481,0.3734175,92816.0,92815.0,0.1396165]
[1745501007088,0.172,92816.0,92815.0,0.1396165]
[1745501007277,0.1077144,92818.0,92817.0,0.1077151]
[1745501008186,0.1077144,92818.0,92817.0,0.1696151]
[1745501009586,0.1404144,92818.0,92817.0,0.1696151]
[1745501010392,0.1077144,92818.0,92817.0,0.1696151]
[1745501013291,0.0538512,92828.0,92825.0,0.1077058]
[1745501013477,0.18991962,92826.0,92825.0,0.1077058]
[1745501013683,0.18991962,92826.0,92825.0,0.4685058]
[1745501014379,0.19391962,92826.0,92825.0,0.5287058]
[1745501014891,0.08621492,92826.0,92825.0,0.5287058]
[1745501015093,0.004,92826.0,92825.0,0.5287058]
[1745501016088,0.1077037,92827.0,92826.0,0.1077047]
[1745501016595,0.1402037,92827.0,92826.0,0.1728047]
[1745501017096,0.3122037,92827.0,92826.0,0.1728047]
[1745501017282,0.3132037,92827.0,92826.0,0.1728047]
[1745501017482,0.2055,92827.0,92826.0,0.1728047]
[1745501017691,0.2065,92827.0,92826.0,0.1728047]
[1745501018790,0.3142035,92827.0,92826.0,0.1728047]
[1745501019287,0.3142035,92827.0,92826.0,0.1396047]
[1745501019680,0.1077047,92826.0,92825.0,0.3608]
[1745501019882,0.1077082,92823.0,92822.0,0.0317]
[1745501020091,0.1077175,92815.0,92814.0,0.2154305]
[1745501020890,0.1725175,92815.0,92814.0,0.2154305]
[1745501021094,0.3445175,92815.0,92814.0,0.2154305]
[1745501022495,0.3445175,92815.0,92814.0,0.2184305]
[1745501023096,0.3445175,92815.0,92814.0,0.2174305]
[1745501023291,0.3445175,92815.0,92814.0,0.2194305]
[1745501023487,0.3445175,92815.0,92814.0,0.2174305]
[1745501023694,0.3445175,92815.0,92814.0,0.2194305]
[1745501023890,0.2368,92815.0,92814.0,0.2194305]
[1745501024092,0.3445175,92815.0,92814.0,0.2504305]
[1745501024800,0.3445175,92815.0,92814.0,0.1117186]
[1745501025099,0.3445175,92815.0,92814.0,0.004]
[1745501025785,0.3445175,92815.0,92814.0,0.1117186]
[1745501026195,0.3445175,92815.0,92814.0,0.004]
[1745501026692,0.8445175,92815.0,92814.0,0.1117186]
[1745501026995,0.8445175,92815.0,92814.0,0.004]
[1745501027395,0.8445175,92815.0,92814.0,0.1117186]
[1745501028098,0.9522575,92815.0,92814.0,0.004]
[1745501032009,0.9522575,92815.0,92814.0,0.1117186]
[1745501032304,0.8445175,92815.0,92814.0,0.004]
[1745501033303,0.8445175,92815.0,92814.0,0.1117186]
[1745501034004,0.8445175,92815.0,92814.0,0.004]
[1745501035613,0.8445175,92815.0,92814.0,0.0354]
[1745501039909,0.8445175,92815.0,92814.0,0.1431186]
[1745501040112,0.8445175,92815.0,92814.0,0.0354]
[1745501040408,0.8445175,92815.0,92814.0,0.1431186]
[1745501040800,0.8445175,92815.0,92814.0,0.004]
[1745501041105,0.3445175,92815.0,92814.0,0.004]
[1745501041308,0.3445175,92815.0,92814.0,0.1117186]
[1745501042906,0.3445175,92815.0,92814.0,0.1431186]
[1745501043712,0.3445175,92815.0,92814.0,0.1117186]
[1745501050812,0.3445175,92815.0,92814.0,0.1431186]
[1745501051005,0.3445175,92815.0,92814.0,0.1752186]
[1745501051918,0.2797175,92815.0,92814.0,0.1752186]
[1745501052118,0.1077175,92815.0,92814.0,0.1752186]
[1745501052622,0.0822369,92819.0,92814.0,0.0675]
[1745501052827,0.0822369,92819.0,92818.0,0.468514]
[1745501053519,0.1747496,92822.0,92821.0,0.1077105]
[1745501056223,0.10966521,92824.0,92823.0,0.1077082]
[1745501056419,0.21737221,92824.0,92823.0,0.1077082]
[1745501056923,0.21737221,92824.0,92823.0,0.1716082]
[1745501057827,0.107707,92824.0,92823.0,0.1716082]
[1745501065428,0.138307,92824.0,92823.0,0.1716082]
[1745501068724,0.2154022,92833.0,92832.0,0.1076977]
[1745501068924,0.33080231,92833.0,92832.0,0.1076977]
[1745501069223,0.50280231,92833.0,92832.0,0.1076977]
[1745501069933,0.50580231,92833.0,92832.0,0.1076977]
[1745501070133,0.50880231,92833.0,92832.0,0.1076977]
[1745501070529,0.0538523,92827.0,92826.0,0.1615568]
[1745501070722,0.1615581,92827.0,92826.0,0.1615568]
[1745501070924,0.2276581,92827.0,92826.0,0.1615568]
[1745501071218,0.3996581,92827.0,92826.0,0.1615568]
[1745501071729,0.4006581,92827.0,92826.0,0.1615568]
[1745501071927,0.4016581,92827.0,92826.0,0.1615568]
[1745501072917,0.0538538,92824.0,92799.0,0.053868]
[1745501073123,0.1077198,92813.0,92810.0,0.053861]
[1745501073427,0.1077279,92807.0,92806.0,0.1615911]
[1745501073822,0.1387279,92807.0,92806.0,0.1615911]
[1745501074332,0.1077279,92807.0,92806.0,0.1946911]
[1745501074529,0.1077279,92807.0,92806.0,0.2257911]
[1745501075024,0.1402279,92807.0,92806.0,0.2257911]
[1745501075527,0.1402279,92807.0,92806.0,0.2327911]
[1745501079226,0.1722279,92807.0,92806.0,0.2327911]
[1745501085941,0.1077279,92807.0,92806.0,0.2327911]
[1745501086238,0.3939,92819.0,92812.0,0.0538604]
[1745501086436,0.2811338,92818.0,92817.0,0.1077151]
[1745501088139,0.4531338,92818.0,92817.0,0.1077151]
[1745501088337,0.4531338,92818.0,92817.0,0.1097151]
[1745501095949,0.4531338,92818.0,92817.0,0.1419151]
[1745501100352,0.172,92818.0,92817.0,0.5027151]
[1745501100544,0.172,92818.0,92817.0,0.5328151]
[1745501101137,0.10966521,92821.0,92817.0,0.5328151]
[1745501101355,0.10966521,92821.0,92820.0,0.1077116]
[1745501102647,0.10966521,92821.0,92820.0,0.1689116]
[1745501103238,0.28166521,92821.0,92820.0,0.1689116]
[1745501104049,0.172,92821.0,92820.0,0.1689116]
[1745501104355,0.1077096,92822.0,92821.0,0.1077105]
[1745501104548,0.1077096,92822.0,92821.0,0.2043105]
[1745501105153,0.172,92822.0,92821.0,0.2043105]
[1745501105355,0.2797093,92822.0,92821.0,0.2043105]
[1745501105655,0.3104093,92822.0,92821.0,0.2043105]
[1745501107754,0.2027,92822.0,92821.0,0.2043105]
[1745501107956,0.3104093,92822.0,92821.0,0.2043105]
[1745501108167,0.1384093,92822.0,92821.0,0.2043105]
[1745501108747,0.1077093,92822.0,92821.0,0.2043105]
[1745501109147,0.2797093,92822.0,92821.0,0.2043105]
[1745501109859,0.3424093,92822.0,92821.0,0.2043105]
[1745501110950,0.3424093,92822.0,92821.0,0.0331]
[1745501111158,0.3424093,92822.0,92821.0,0.1408105]
[1745501111358,0.0538564,92820.0,92808.0,0.3608]
[1745501111659,0.1077175,92815.0,92813.0,0.1077194]
[1745501111850,0.1077175,92815.0,92814.0,0.1077186]
[1745501112052,0.2797175,92815.0,92814.0,0.1077186]
[1745501112447,0.3420175,92815.0,92814.0,0.1077186]
[1745501112652,0.3420175,92815.0,92814.0,0.1087186]
[1745501112853,0.3420175,92815.0,92814.0,0.001]
[1745501113252,0.0538601,92813.0,92807.0,0.00028]
[1745501113559,0.1077256,92808.0,92807.0,0.1615859]
[1745501114157,0.2797256,92808.0,92807.0,0.1615859]
[1745501114551,0.3416256,92808.0,92807.0,0.1924859]
[1745501114954,0.3416256,92808.0,92807.0,0.1944859]
[1745501115551,0.3416256,92808.0,92807.0,0.1974859]
[1745501116366,0.3416256,92808.0,92807.0,0.1954859]
[1745501116661,0.3416256,92808.0,92807.0,0.1994859]
[1745501116865,0.3416256,92808.0,92807.0,0.0917626]
[1745501122360,0.172,92808.0,92807.0,0.4525626]
[1745501123260,0.08231479,92816.0,92815.0,0.1077175]
[1745501123449,0.19003109,92816.0,92815.0,0.1077175]
[1745501123653,0.08231479,92816.0,92815.0,0.1077175]
[1745501124057,0.08231479,92816.0,92815.0,0.1719175]
[1745501124658,0.08231479,92816.0,92815.0,0.1729175]
[1745501125457,0.08231479,92816.0,92815.0,0.1749175]
[1745501126569,0.1077162,92817.0,92816.0,0.1077163]
[1745501126759,0.1077162,92817.0,92816.0,0.1715163]
[1745501127071,0.0644,92818.0,92817.0,0.1077151]
[1745501127264,0.0644,92818.0,92817.0,0.1715151]
[1745501128159,0.172114,92818.0,92817.0,0.1715151]
[1745501128668,0.0644,92818.0,92817.0,0.1715151]
[1745501129060,0.0644,92818.0,92817.0,0.1725151]
[1745501129259,0.172114,92818.0,92817.0,0.1725151]
[1745501130066,0.172114,92818.0,92817.0,0.1735151]
[1745501130256,0.344114,92818.0,92817.0,0.1735151]
[1745501131275,0.172114,92818.0,92817.0,0.1735151]
[1745501131966,0.172114,92818.0,92817.0,0.1421151]
[1745501132173,0.344114,92818.0,92817.0,0.1421151]
[1745501132873,0.344114,92818.0,92817.0,0.002]
[1745501133373,0.344114,92818.0,92817.0,0.1097151]
[1745501133967,0.844114,92818.0,92817.0,0.1097151]
[1745501136674,0.844114,92818.0,92817.0,0.002]
[1745501145990,0.844114,92818.0,92817.0,0.012]
[1745501147091,0.95377921,92818.0,92817.0,0.012]
[1745501147985,0.1077209,92812.0,92811.0,0.00028]
[1745501148183,0.6405209,92812.0,92811.0,0.28028]
[1745501148487,0.7362209,92812.0,92811.0,0.28]
[1745501149186,0.7362209,92812.0,92811.0,0.282]
[1745501149980,0.7362209,92812.0,92811.0,0.285]
[1745501150891,0.8439649,92812.0,92811.0,0.23520906]
[1745501151193,1.3439649,92812.0,92811.0,0.23520906]
[1745501152092,1.2362209,92812.0,92811.0,0.23520906]
[1745501153190,1.2362209,92812.0,92811.0,0.17423286]
[1745501153494,0.10775,92787.0,92783.0,0.0538772]
[1745501153793,0.10775,92787.0,92786.0,0.24928022]
[1745501154185,0.14055,92787.0,92786.0,0.24107774]
[1745501154896,0.17285,92787.0,92786.0,0.24107774]
[1745501155587,0.17285,92787.0,92786.0,0.34882884]
[1745501155792,0.17285,92787.0,92786.0,0.35182884]
[1745501155996,0.67285,92787.0,92786.0,0.35182884]
[1745501156699,0.67385,92787.0,92786.0,0.35582884]
[1745501157196,0.60875,92787.0,92786.0,0.35582884]
[1745501159505,0.10875,92787.0,92786.0,0.35582884]
[1745501161401,0.001,92787.0,92786.0,0.35582884]
[1745501161607,0.1748183,92797.0,92796.0,0.1077395]
[1745501161903,0.1077383,92797.0,92796.0,0.3677395]
[1745501162605,0.1397383,92797.0,92796.0,0.4005395]
[1745501162807,0.1407383,92797.0,92796.0,0.4045395]
[1745501163302,0.1087383,92797.0,92796.0,0.4045395]
[1745501168301,0.1087383,92797.0,92796.0,0.2968]
[1745501169212,0.2807383,92797.0,92796.0,0.264]
[1745501169600,0.7807383,92797.0,92796.0,0.264]
[1745501169911,0.8108383,92797.0,92796.0,0.264]
[1745501170294,0.8418383,92797.0,92796.0,0.264]
[1745501174205,0.8418383,92797.0,92796.0,0.3717395]
[1745501174508,0.8418383,92797.0,92796.0,0.264]
[1745501175208,0.8418383,92797.0,92796.0,0.3717395]
[1745501176007,0.7807383,92797.0,92796.0,0.3717395]
[1745501176207,0.6087383,92797.0,92796.0,0.3717395]
[1745501176409,0.1087383,92797.0,92796.0,0.3717395]
[1745501177312,0.1087383,92797.0,92796.0,0.4025395]
[1745501180100,0.1393383,92797.0,92796.0,0.4025395]
[1745501181208,0.1700383,92797.0,92796.0,0.4025395]
[1745501184112,0.3420383,92797.0,92796.0,0.4025395]
[1745501185216,0.1700383,92797.0,92796.0,0.4025395]
[1745501185711,0.1087383,92797.0,92796.0,0.4025395]
[1745501186610,0.1087383,92797.0,92796.0,0.4346395]
[1745501188209,0.1717383,92797.0,92796.0,0.4346395]
[1745501189314,0.28140351,92797.0,92796.0,0.4346395]
[1745501193323,0.1717383,92797.0,92796.0,0.4346395]
[1745501193921,0.1087383,92797.0,92796.0,0.4346395]
[1745501194819,0.001,92797.0,92796.0,0.4346395]
[1745501195324,0.1087383,92797.0,92796.0,0.4346395]
[1745501196432,0.4695383,92797.0,92796.0,0.3717395]
[1745501196925,0.5328383,92797.0,92796.0,0.3717395]
[1745501197322,1.0328383,92797.0,92796.0,0.3717395]
[1745501197526,0.6720383,92797.0,92796.0,0.264]
[1745501197823,1.0328383,92797.0,92796.0,0.3717395]
[1745501198225,1.2048383,92797.0,92796.0,0.3717395]
[1745501198627,0.7048383,92797.0,92796.0,0.3717395]
[1745501200131,0.5328383,92797.0,92796.0,0.3717395]
[1745501202128,0.7048383,92797.0,92796.0,0.3717395]
[1745501204729,0.7048383,92797.0,92796.0,0.264]
[1745501204929,0.7048383,92797.0,92796.0,0.3717395]
[1745501205130,0.5328383,92797.0,92796.0,0.264]
[1745501206223,0.7048383,92797.0,92796.0,0.264]
[1745501206418,1.2048383,92797.0,92796.0,0.3717395]
[1745501207316,1.2048383,92797.0,92796.0,0.4022395]
[1745501210929,1.2048383,92797.0,92796.0,0.4348395]
[1745501211830,1.2048383,92797.0,92796.0,0.4022395]
[1745501213231,0.8440383,92797.0,92796.0,0.4022395]
[1745501214330,0.8440383,92797.0,92796.0,0.2945]
[1745501215024,0.8440383,92797.0,92796.0,0.4022395]
[1745501215332,0.8440383,92797.0,92796.0,0.2945]
[1745501215835,0.8440383,92797.0,92796.0,0.4022395]
[1745501216937,0.8440383,92797.0,92796.0,0.2945]
[1745501217143,0.8440383,92797.0,92796.0,0.264]
[1745501223226,0.6720383,92797.0,92796.0,0.264]
[1745501225145,0.8440383,92797.0,92796.0,0.264]
[1745501226237,0.6720383,92797.0,92796.0,0.264]
[1745501227242,0.8440383,92797.0,92796.0,0.264]
[1745501232338,0.6720383,92797.0,92796.0,0.264]
[1745501234744,0.7818735,92797.0,92796.0,0.264]
[1745501238845,0.6720383,92797.0,92796.0,0.264]
[1745501239344,0.6720383,92797.0,92796.0,0.263]
[1745501242348,0.6720383,92797.0,92796.0,0.3251]
[1745501246940,0.6087383,92797.0,92796.0,0.4328395]
[1745501247135,0.6087383,92797.0,92796.0,0.3251]
[1745501248349,0.6087383,92797.0,92796.0,0.4328395]
[1745501250850,0.71862922,92797.0,92796.0,0.4328395]
[1745501252849,0.71862922,92797.0,92796.0,0.3251]
[1745501254842,0.6087383,92797.0,92796.0,0.3251]
[1745501255543,0.6710383,92797.0,92796.0,0.3251]
[1745501256753,0.6710383,92797.0,92796.0,2.3251]
[1745501257149,0.6710383,92797.0,92796.0,2.2931]
[1745501257652,0.6710383,92797.0,92796.0,2.263]
[1745501260250,0.7788023,92797.0,92796.0,2.004]
[1745501261265,0.9508023,92797.0,92796.0,2.004]
[1745501267058,0.8430383,92797.0,92796.0,2.004]
[1745501274057,0.8430383,92797.0,92796.0,1.9548058]
[1745501274251,0.9508023,92797.0,92796.0,1.909309]
[1745501279262,0.8430383,92797.0,92796.0,1.909309]
[1745501280362,0.7807383,92797.0,92796.0,2.019309]
[1745501281369,0.6087276,92797.0,92796.0,2.2990377]
[1745501281868,0.1087276,92797.0,92796.0,2.3310377]
[1745501282062,0.1087276,92797.0,92796.0,2.3638377]
[1745501283265,0.1087276,92797.0,92796.0,2.256109]
[1745501283767,0.1087276,92797.0,92796.0,2.3638377]
[1745501288177,0.1087276,92797.0,92796.0,2.256109]
[1745501288968,0.1756476,92797.0,92796.0,2.256109]
[1745501289170,0.1756476,92797.0,92796.0,2.084109]
[1745501289370,0.6756476,92797.0,92796.0,2.084109]
[1745501291067,0.7062476,92797.0,92796.0,2.084109]
[1745501292579,0.7062476,92797.0,92796.0,2.051309]
[1745501297380,0.81596363,92797.0,92796.0,2.051309]
[1745501298083,0.84746363,92797.0,92796.0,2.051309]
[1745501302685,0.78054363,92797.0,92796.0,2.051309]
[1745501302888,0.84746363,92797.0,92796.0,2.051309]
[1745501304774,0.7377476,92797.0,92796.0,2.051309]
[1745501308683,0.87497421,92797.0,92796.0,2.051309]
[1745501313283,0.7377476,92797.0,92796.0,2.051309]
[1745501313985,0.7377476,92797.0,92796.0,1.941309]
[1745501314501,0.7377476,92797.0,92796.0,2.191309]
[1745501319698,0.6756476,92797.0,92796.0,2.191309]
[1745501319992,0.6756476,92797.0,92796.0,2.2990377]
[1745501320192,0.6756476,92797.0,92796.0,2.4710377]
[1745501320697,0.6756476,92797.0,92796.0,2.5026377]
[1745501321594,0.6756476,92797.0,92796.0,2.394909]
[1745501322094,0.1087276,92797.0,92796.0,2.394909]
[1745501322296,0.1756476,92797.0,92796.0,2.222909]
[1745501322701,0.2089476,92797.0,92796.0,2.222909]
[1745501323791,0.1756476,92797.0,92796.0,2.222909]
[1745501324491,0.2071476,92797.0,92796.0,2.222909]
[1745501327191,0.7071476,92797.0,92796.0,2.222909]
[1745501327796,0.81698841,92797.0,92796.0,2.222909]
[1745501329896,0.81698841,92797.0,92796.0,2.191309]
[1745501330094,1.01998841,92797.0,92796.0,2.191309]
[1745501331299,0.84798841,92797.0,92796.0,2.191309]
[1745501332007,0.7381476,92797.0,92796.0,2.191309]
[1745501337600,1.0989476,92797.0,92796.0,2.191309]
[1745501340307,1.0679476,92797.0,92796.0,2.191309]
[1745501340506,0.9695276,92797.0,92796.0,2.2990377]
[1745501340703,0.6756476,92797.0,92796.0,2.2990377]
[1745501341209,0.56792,92797.0,92796.0,2.2990377]
[1745501341506,0.1756476,92797.0,92796.0,2.2990377]
[1745501342201,0.1756476,92797.0,92796.0,2.4710377]
[1745501343108,0.1756476,92797.0,92796.0,2.2990377]
[1745501345133,0.001,92797.0,92796.0,2.2990377]
[1745501345340,0.1087276,92797.0,92796.0,2.2990377]
[1745501348142,0.1087276,92797.0,92796.0,2.191309]
[1745501348338,0.1087276,92797.0,92796.0,2.2990377]
[1745501357314,0.1087276,92797.0,92796.0,2.3305377]
[1745501360023,0.001,92797.0,92796.0,2.3305377]
[1745501360412,0.1087276,92797.0,92796.0,2.3305377]
[1745501364026,0.1393276,92797.0,92796.0,2.3305377]
[1745501364526,0.1705276,92797.0,92796.0,2.3305377]
[1745501364922,0.1705276,92797.0,92796.0,2.191309]
[1745501366029,0.1705276,92797.0,92796.0,2.2990377]
[1745501367431,0.1705276,92797.0,92796.0,2.191309]
[1745501368237,0.1705276,92797.0,92796.0,2.2990377]
[1745501368530,0.1705276,92797.0,92796.0,2.191309]
[1745501371838,0.2037276,92797.0,92796.0,2.191309]
[1745501372237,0.3757276,92797.0,92796.0,2.191309]
[1745501373138,0.2037276,92797.0,92796.0,2.191309]
[1745501376138,0.1087276,92797.0,92796.0,2.191309]
[1745501376740,0.1415276,92797.0,92796.0,2.191309]
[1745501377333,0.1745276,92797.0,92796.0,2.191309]
[1745501378038,0.2074276,92797.0,92796.0,2.191309]
[1745501380341,0.3465276,92797.0,92796.0,2.191309]
[1745501381143,0.1745276,92797.0,92796.0,2.191309]
[1745501382144,0.3465276,92797.0,92796.0,2.191309]
[1745501387140,0.28439289,92797.0,92796.0,2.191309]
[1745501388539,0.11086529,92797.0,92796.0,2.2990377]
[1745501388737,0.21859289,92797.0,92796.0,2.2990377]
[1745501388936,0.21859289,92797.0,92796.0,2.3301377]
[1745501391234,0.1087276,92797.0,92796.0,2.3301377]
[1745501391638,0.1087276,92797.0,92796.0,2.222409]
[1745501391849,0.1723276,92797.0,92796.0,2.222409]
[1745501392039,0.1723276,92797.0,92796.0,2.3301377]
[1745501392238,0.1723276,92797.0,92796.0,2.222409]
[1745501392739,0.1723276,92797.0,92796.0,2.3301377]
[1745501393842,0.1723276,92797.0,92796.0,2.222409]
[1745501394041,0.1723276,92797.0,92796.0,2.3301377]
[1745501395750,0.1396276,92797.0,92796.0,2.3301377]
[1745501396049,0.1087276,92797.0,92796.0,2.3301377]
[1745501400443,0.1087276,92797.0,92796.0,2.222409]
[1745501400648,0.1087276,92797.0,92796.0,2.159309]
[1745501400849,0.1722276,92797.0,92796.0,2.159309]
[1745501401144,0.1722276,92797.0,92796.0,2.2670377]
[1745501401552,0.001,92797.0,92796.0,2.2670377]
[1745501401752,0.19108401,92810.0,92806.0,0.0538583]
[1745501401957,0.29880001,92810.0,92809.0,0.1077136]
[1745501402153,0.13722661,92810.0,92809.0,0.3377136]
[1745501402352,0.13722661,92810.0,92809.0,0.3577136]
[1745501402756,0.1077125,92810.0,92809.0,0.4654616]
[1745501403052,0.1107125,92810.0,92809.0,0.4654616]
[1745501403248,0.1107125,92810.0,92809.0,0.25]
[1745501403456,0.1077125,92810.0,92809.0,0.36866417]
[1745501403652,0.1107125,92810.0,92809.0,0.36866417]
[1745501404060,0.1077125,92810.0,92809.0,0.36866417]
[1745501404245,0.1077125,92810.0,92809.0,0.251]
[1745501404450,0.1077125,92810.0,92809.0,0.3587136]
[1745501404653,0.1107125,92810.0,92809.0,0.251]
[1745501404857,0.1739125,92810.0,92809.0,0.3587136]
[1745501405355,0.5317125,92810.0,92809.0,0.251]
[1745501405556,0.5317125,92810.0,92809.0,0.252]
[1745501405955,0.0632,92810.0,92809.0,0.3597136]
[1745501406156,0.2007411,92820.0,92809.0,0.3597136]
[1745501406157,0.00161685,92820.0,92813.0,0.0538543]
[1745501406357,0.0319,92830.0,92827.0,0.1076928]
[1745501406557,0.01063839,92843.0,92841.0,0.1076765]
[1745501406752,0.01063839,92843.0,92841.0,0.3976765]
[1745501407358,0.1100754,92842.0,92841.0,0.47830677]
[1745501407564,0.0024,92842.0,92841.0,0.61788525]
[1745501407859,0.1401754,92842.0,92841.0,0.61788525]
[1745501408054,0.0644,92842.0,92841.0,0.61788525]
[1745501408259,0.1720754,92842.0,92841.0,0.51020875]
[1745501408955,0.0744,92842.0,92841.0,0.61888525]
[1745501409156,0.0124,92842.0,92841.0,0.44688525]
[1745501409657,0.0024,92842.0,92841.0,0.44588525]
[1745501409855,0.0084,92842.0,92841.0,0.44688525]
[1745501410057,0.0084,92842.0,92841.0,0.61888525]
[1745501410559,0.0011,92847.0,92846.0,0.1076707]
[1745501410857,0.19200599,92860.0,92846.0,0.1076707]
[1745501410858,0.19200599,92860.0,92859.0,0.1076556]
[1745501411051,0.19200599,92860.0,92859.0,0.72476435]
[1745501411358,0.19200599,92860.0,92859.0,0.79156435]
[1745501411855,0.19200599,92860.0,92859.0,0.85246435]
[1745501412157,0.29966049,92860.0,92859.0,1.02446435]
[1745501412352,0.29966049,92860.0,92859.0,0.49870875]
[1745501412559,0.29966049,92860.0,92859.0,0.4824]
[1745501412759,0.30566049,92860.0,92859.0,0.4834]
[1745501412963,0.37326049,92860.0,92859.0,0.4844]
[1745501413164,0.54526049,92860.0,92859.0,0.3124]
[1745501413865,0.54526049,92860.0,92859.0,0.4200556]
[1745501414161,0.20400599,92860.0,92859.0,0.4200556]
[1745501414364,0.31166049,92860.0,92859.0,0.4514556]
[1745501414559,0.20400599,92860.0,92859.0,0.4514556]
[1745501414765,0.20400599,92860.0,92859.0,0.46801459]
[1745501415150,0.20400599,92860.0,92859.0,0.64001459]
[1745501415953,0.19200599,92860.0,92859.0,0.63801459]
[1745501416156,0.20100599,92860.0,92859.0,0.74670259]
[1745501417059,0.30866049,92860.0,92859.0,0.74670259]
[1745501417258,0.30866049,92860.0,92859.0,0.74617957]
[1745501417463,0.30866049,92860.0,92859.0,0.7969436]
[1745501417665,0.30866049,92860.0,92859.0,0.622488]
[1745501417864,0.30866049,92860.0,92859.0,0.591088]
[1745501418061,0.1497545,92860.0,92859.0,0.5910556]
[1745501418268,0.009,92860.0,92859.0,0.4190556]
[1745501418457,0.009,92860.0,92859.0,0.4512556]